[Event "Titled Tuesday Blitz June 07 Late 2022"]
[White "Badelka, Olga"]
[Black "Lobanov, Sergei"]
[WhiteFideId "13509926"]
[BlackFideId "24183750"]
[WhiteElo "2165"]
[BlackElo "2524"]
[Result "1-0"]
[Round "01"]
[TimeControl "180+1"]
[Date "2022.06.07"]
[WhiteClock "0:00:05"]
[BlackClock "0:00:04"]

1. c4 {[%clk 0:02:58]}  e5 {[%clk 0:02:58]} 2. Nc3 {[%clk 0:02:56]}  Nc6 {[%clk 0:02:57]} 3. a3 {[%clk 0:02:54]}  a5 {[%clk 0:02:54]} 4. g3 {[%clk 0:02:54]}  g6 {[%clk 0:02:53]} 5. Bg2 {[%clk 0:02:54]}  Bg7 {[%clk 0:02:53]} 6. e4 {[%clk 0:02:52]}  Nge7 {[%clk 0:02:53]} 7. Nge2 {[%clk 0:02:53]}  d6 {[%clk 0:02:53]} 8. O-O {[%clk 0:02:53]}  h5 {[%clk 0:02:52]} 9. d3 {[%clk 0:02:50]}  h4 {[%clk 0:02:52]} 10. Bg5 {[%clk 0:02:50]}  f6 {[%clk 0:02:29]} 11. Be3 {[%clk 0:02:49]}  Bg4 {[%clk 0:02:25]} 12. h3 {[%clk 0:02:39]}  Be6 {[%clk 0:02:21]} 13. g4 {[%clk 0:02:33]}  f5 {[%clk 0:02:20]} 14. f3 {[%clk 0:02:25]}  Nd4 {[%clk 0:02:15]} 15. Nd5 {[%clk 0:02:08]}  Nec6 {[%clk 0:01:59]} 16. exf5 {[%clk 0:01:55]}  gxf5 {[%clk 0:01:59]} 17. Nxd4 {[%clk 0:01:54]}  Nxd4 {[%clk 0:01:35]} 18. Bxd4 {[%clk 0:01:47]}  exd4 {[%clk 0:01:36]} 19. Re1 {[%clk 0:01:43]}  Kd7 {[%clk 0:01:30]} 20. Qa4+ {[%clk 0:00:32]}  c6 {[%clk 0:01:19]} 21. gxf5 {[%clk 0:00:32]}  Bxd5 {[%clk 0:00:48]} 22. cxd5 {[%clk 0:00:32]}  Kc7 {[%clk 0:00:49]} 23. dxc6 {[%clk 0:00:30]}  bxc6 {[%clk 0:00:49]} 24. f4 {[%clk 0:00:29]}  Ra6 {[%clk 0:00:42]} 25. Rac1 {[%clk 0:00:25]}  Qd7 {[%clk 0:00:28]} 26. Re6 {[%clk 0:00:18]}  Bh6 {[%clk 0:00:21]} 27. Rce1 {[%clk 0:00:16]}  Rh7 {[%clk 0:00:19]} 28. f6 {[%clk 0:00:16]}  Bf8 {[%clk 0:00:17]} 29. Re8 {[%clk 0:00:15]}  Rf7 {[%clk 0:00:16]} 30. Rxf8 {[%clk 0:00:14]}  Rxf8 {[%clk 0:00:16]} 31. Re7 {[%clk 0:00:14]}  Rxf6 {[%clk 0:00:17]} 32. Rxd7+ {[%clk 0:00:14]}  Kxd7 {[%clk 0:00:18]} 33. Qxd4 {[%clk 0:00:13]}  Ke7 {[%clk 0:00:13]} 34. Qc4 {[%clk 0:00:11]}  Rb6 {[%clk 0:00:11]} 35. Qe4+ {[%clk 0:00:08]}  Kf7 {[%clk 0:00:07]} 36. Qh7+ {[%clk 0:00:07]}  Kf8 {[%clk 0:00:08]} 37. Qh8+ {[%clk 0:00:07]}  Kf7 {[%clk 0:00:08]} 38. Qh7+ {[%clk 0:00:07]}  Kf8 {[%clk 0:00:08]} 39. Qxh4 {[%clk 0:00:08]}  Kg7 {[%clk 0:00:06]} 40. Qg5+ {[%clk 0:00:08]}  Kf7 {[%clk 0:00:07]} 41. Qh5+ {[%clk 0:00:08]}  Kg7 {[%clk 0:00:07]} 42. Qg5+ {[%clk 0:00:08]}  Kf7 {[%clk 0:00:08]} 43. Be4 {[%clk 0:00:08]}  Rxb2 {[%clk 0:00:07]} 44. Qh5+ {[%clk 0:00:08]}  Ke7 {[%clk 0:00:07]} 45. Qh7+ {[%clk 0:00:08]}  Rf7 {[%clk 0:00:07]} 46. Qh8 {[%clk 0:00:07]}  Ra2 {[%clk 0:00:06]} 47. Qc8 {[%clk 0:00:07]}  Rg7+ {[%clk 0:00:06]} 48. Kf1 {[%clk 0:00:06]}  Rg3 {[%clk 0:00:05]} 49. Qc7+ {[%clk 0:00:05]}  Ke6 {[%clk 0:00:05]} 50. f5+ {[%clk 0:00:05]}  Ke5 {[%clk 0:00:06]} 51. Qe7+ {[%clk 0:00:05]}  Kf4 {[%clk 0:00:04]} 52. Qxd6+ {[%clk 0:00:05]} 1-0


[Site "https://www.chess.com"]

[Event "Titled Tuesday Blitz June 07 Late 2022"]
[White "Bayo Milagro, Alvaro"]
[Black "Svane, Rasmus"]
[WhiteFideId "22275240"]
[BlackFideId "4657101"]
[WhiteElo "2270"]
[BlackElo "2674"]
[Result "0-1"]
[Round "01"]
[TimeControl "180+1"]
[Date "2022.06.07"]
[WhiteClock "0:00:10"]
[BlackClock "0:00:03"]

1. d4 {[%clk 0:02:58]}  d5 {[%clk 0:02:59]} 2. c4 {[%clk 0:02:59]}  e6 {[%clk 0:02:58]} 3. Nf3 {[%clk 0:02:59]}  a6 {[%clk 0:02:58]} 4. Qc2 {[%clk 0:02:45]}  Nf6 {[%clk 0:02:54]} 5. g3 {[%clk 0:02:45]}  dxc4 {[%clk 0:02:52]} 6. a4 {[%clk 0:02:41]}  b6 {[%clk 0:02:44]} 7. Bg2 {[%clk 0:02:39]}  Bb7 {[%clk 0:02:45]} 8. Qxc4 {[%clk 0:02:37]}  c5 {[%clk 0:02:41]} 9. O-O {[%clk 0:02:29]}  Nbd7 {[%clk 0:02:39]} 10. Rd1 {[%clk 0:02:28]}  Rc8 {[%clk 0:02:38]} 11. Bg5 {[%clk 0:02:13]}  Be7 {[%clk 0:02:36]} 12. Nc3 {[%clk 0:02:08]}  O-O {[%clk 0:02:00]} 13. Qd3 {[%clk 0:01:57]}  h6 {[%clk 0:01:52]} 14. Bxf6 {[%clk 0:01:55]}  Nxf6 {[%clk 0:01:28]} 15. Ne5 {[%clk 0:01:32]}  Bxg2 {[%clk 0:01:22]} 16. Kxg2 {[%clk 0:01:33]}  cxd4 {[%clk 0:01:22]} 17. Qxd4 {[%clk 0:01:33]}  Qc7 {[%clk 0:01:22]} 18. Nd3 {[%clk 0:01:18]}  Qb7+ {[%clk 0:01:18]} 19. f3 {[%clk 0:01:16]}  Rfd8 {[%clk 0:01:18]} 20. Qe3 {[%clk 0:00:55]}  Nd5 {[%clk 0:00:49]} 21. Nxd5 {[%clk 0:00:55]}  exd5 {[%clk 0:00:46]} 22. Rac1 {[%clk 0:00:42]}  Bf6 {[%clk 0:00:46]} 23. Rxc8 {[%clk 0:00:39]}  Rxc8 {[%clk 0:00:44]} 24. Rc1 {[%clk 0:00:40]}  Rd8 {[%clk 0:00:44]} 25. b4 {[%clk 0:00:36]}  Qd7 {[%clk 0:00:36]} 26. Qxb6 {[%clk 0:00:31]}  Qxa4 {[%clk 0:00:35]} 27. Rc6 {[%clk 0:00:29]}  Re8 {[%clk 0:00:31]} 28. Kf2 {[%clk 0:00:24]}  Qa1 {[%clk 0:00:23]} 29. Qxa6 {[%clk 0:00:20]}  Bd4+ {[%clk 0:00:24]} 30. Kg2 {[%clk 0:00:20]}  Rxe2+ {[%clk 0:00:24]} 31. Kh3 {[%clk 0:00:20]}  Qf1+ {[%clk 0:00:24]} 32. Kg4 {[%clk 0:00:20]}  h5+ {[%clk 0:00:21]} 33. Kg5 {[%clk 0:00:19]}  Qxf3 {[%clk 0:00:11]} 34. Qc8+ {[%clk 0:00:19]}  Kh7 {[%clk 0:00:11]} 35. Qf5+ {[%clk 0:00:19]}  Qxf5+ {[%clk 0:00:11]} 36. Kxf5 {[%clk 0:00:20]}  Rd2 {[%clk 0:00:08]} 37. Nf4 {[%clk 0:00:20]}  Be3 {[%clk 0:00:07]} 38. b5 {[%clk 0:00:18]}  Rb2 {[%clk 0:00:07]} 39. Nxd5 {[%clk 0:00:18]}  Rxb5 {[%clk 0:00:07]} 40. Ke4 {[%clk 0:00:19]}  Bg1 {[%clk 0:00:07]} 41. h3 {[%clk 0:00:17]}  Rb3 {[%clk 0:00:07]} 42. Rc3 {[%clk 0:00:16]}  Rb7 {[%clk 0:00:07]} 43. g4 {[%clk 0:00:16]}  hxg4 {[%clk 0:00:07]} 44. hxg4 {[%clk 0:00:16]}  Rb1 {[%clk 0:00:06]} 45. Kf3 {[%clk 0:00:16]}  Bd4 {[%clk 0:00:06]} 46. Rd3 {[%clk 0:00:16]}  Be5 {[%clk 0:00:07]} 47. Ne3 {[%clk 0:00:16]}  g6 {[%clk 0:00:06]} 48. Rd5 {[%clk 0:00:15]}  Bb8 {[%clk 0:00:05]} 49. Rd7 {[%clk 0:00:16]}  Kg7 {[%clk 0:00:05]} 50. Nc4 {[%clk 0:00:16]}  Rb3+ {[%clk 0:00:05]} 51. Ke4 {[%clk 0:00:15]}  Rg3 {[%clk 0:00:06]} 52. Rb7 {[%clk 0:00:11]}  Rxg4+ {[%clk 0:00:05]} 53. Kd5 {[%clk 0:00:11]}  Bg3 {[%clk 0:00:03]} 54. Nb6 {[%clk 0:00:10]}  Rb4 {[%clk 0:00:03]} 55. Kc5 {[%clk 0:00:09]}  Rb1 {[%clk 0:00:03]} 56. Kc6 {[%clk 0:00:10]}  Bf2 {[%clk 0:00:03]} 0-1


[Site "https://www.chess.com"]

[Event "Titled Tuesday Blitz June 07 Late 2022"]
[White "Bluebaum, Matthias"]
[Black "Peatman, Carter"]
[WhiteFideId "24651516"]
[BlackFideId "2096480"]
[WhiteElo "2556"]
[BlackElo "2480"]
[Result "1-0"]
[Round "01"]
[TimeControl "180+1"]
[Date "2022.06.07"]
[WhiteClock "0:01:05"]
[BlackClock "0:00:03"]

1. d4 {[%clk 0:02:58]}  d5 {[%clk 0:02:58]} 2. c4 {[%clk 0:02:57]}  e6 {[%clk 0:02:52]} 3. Nc3 {[%clk 0:02:57]}  Nf6 {[%clk 0:02:47]} 4. cxd5 {[%clk 0:02:57]}  exd5 {[%clk 0:02:46]} 5. Bg5 {[%clk 0:02:57]}  c6 {[%clk 0:02:46]} 6. e3 {[%clk 0:02:57]}  Qb6 {[%clk 0:02:45]} 7. Qd2 {[%clk 0:02:56]}  Ne4 {[%clk 0:02:41]} 8. Nxe4 {[%clk 0:02:57]}  dxe4 {[%clk 0:02:42]} 9. Ne2 {[%clk 0:02:57]}  h6 {[%clk 0:02:33]} 10. Bh4 {[%clk 0:02:55]}  Bf5 {[%clk 0:02:25]} 11. Nc3 {[%clk 0:02:54]}  Bb4 {[%clk 0:02:20]} 12. Be2 {[%clk 0:02:52]}  Nd7 {[%clk 0:02:18]} 13. O-O {[%clk 0:02:53]}  O-O {[%clk 0:02:18]} 14. a3 {[%clk 0:02:53]}  Bxc3 {[%clk 0:02:18]} 15. bxc3 {[%clk 0:02:53]}  Qa5 {[%clk 0:02:07]} 16. Rfb1 {[%clk 0:02:51]}  b6 {[%clk 0:02:02]} 17. Qb2 {[%clk 0:02:46]}  Rac8 {[%clk 0:01:54]} 18. Qb4 {[%clk 0:02:43]}  Qxb4 {[%clk 0:01:40]} 19. axb4 {[%clk 0:02:44]}  Ra8 {[%clk 0:01:39]} 20. Ra3 {[%clk 0:02:44]}  a5 {[%clk 0:01:18]} 21. Rba1 {[%clk 0:02:44]}  Be6 {[%clk 0:01:12]} 22. Bg3 {[%clk 0:02:34]}  Rfc8 {[%clk 0:01:04]} 23. bxa5 {[%clk 0:02:30]}  b5 {[%clk 0:01:04]} 24. h3 {[%clk 0:02:28]}  Nb8 {[%clk 0:00:53]} 25. c4 {[%clk 0:02:17]}  bxc4 {[%clk 0:00:52]} 26. Ra4 {[%clk 0:02:01]}  c3 {[%clk 0:00:48]} 27. Rc1 {[%clk 0:02:01]}  Nd7 {[%clk 0:00:41]} 28. Rxc3 {[%clk 0:02:00]}  c5 {[%clk 0:00:40]} 29. a6 {[%clk 0:02:00]}  cxd4 {[%clk 0:00:34]} 30. Rxc8+ {[%clk 0:02:01]}  Rxc8 {[%clk 0:00:35]} 31. a7 {[%clk 0:02:02]}  Bd5 {[%clk 0:00:25]} 32. Rxd4 {[%clk 0:02:00]}  Nb6 {[%clk 0:00:25]} 33. Bb8 {[%clk 0:01:48]}  Rc1+ {[%clk 0:00:22]} 34. Kh2 {[%clk 0:01:48]}  Ra1 {[%clk 0:00:20]} 35. Rb4 {[%clk 0:01:47]}  Nd7 {[%clk 0:00:20]} 36. Bb5 {[%clk 0:01:40]}  Nf6 {[%clk 0:00:16]} 37. Ba4 {[%clk 0:01:32]}  Ra2 {[%clk 0:00:15]} 38. Bg3 {[%clk 0:01:32]}  Kh7 {[%clk 0:00:08]} 39. Be5 {[%clk 0:01:18]}  Kg6 {[%clk 0:00:08]} 40. Bxf6 {[%clk 0:01:12]}  gxf6 {[%clk 0:00:09]} 41. Kg3 {[%clk 0:01:12]}  f5 {[%clk 0:00:06]} 42. Rb6+ {[%clk 0:01:05]}  Kg7 {[%clk 0:00:03]} 43. Ra6 {[%clk 0:01:05]} 1-0


[Site "https://www.chess.com"]

[Event "Titled Tuesday Blitz June 07 Late 2022"]
[White "Chen, Justin"]
[Black "Rasulov, Vugar"]
[WhiteFideId "2098199"]
[BlackFideId "13402390"]
[WhiteElo "2289"]
[BlackElo "2560"]
[Result "0-1"]
[Round "01"]
[TimeControl "180+1"]
[Date "2022.06.07"]
[WhiteClock "0:00:03"]
[BlackClock "0:01:37"]

1. Nf3 {[%clk 0:02:58]}  Nf6 {[%clk 0:02:59]} 2. b3 {[%clk 0:02:57]}  g6 {[%clk 0:02:59]} 3. Bb2 {[%clk 0:02:55]}  Bg7 {[%clk 0:03:00]} 4. g3 {[%clk 0:02:55]}  O-O {[%clk 0:03:00]} 5. d4 {[%clk 0:02:55]}  d5 {[%clk 0:03:00]} 6. Bg2 {[%clk 0:02:56]}  Ne4 {[%clk 0:03:00]} 7. O-O {[%clk 0:02:57]}  c5 {[%clk 0:03:00]} 8. Nbd2 {[%clk 0:02:56]}  Nc6 {[%clk 0:03:01]} 9. c3 {[%clk 0:02:55]}  Bf5 {[%clk 0:02:55]} 10. Rc1 {[%clk 0:02:52]}  Rc8 {[%clk 0:02:55]} 11. e3 {[%clk 0:02:50]}  Nxd2 {[%clk 0:02:51]} 12. Qxd2 {[%clk 0:02:46]}  Be4 {[%clk 0:02:51]} 13. Rfd1 {[%clk 0:02:42]}  cxd4 {[%clk 0:02:48]} 14. cxd4 {[%clk 0:02:40]}  Qb6 {[%clk 0:02:42]} 15. Qe2 {[%clk 0:02:32]}  Nb4 {[%clk 0:02:37]} 16. Bc3 {[%clk 0:02:06]}  a5 {[%clk 0:02:33]} 17. Bxb4 {[%clk 0:01:45]}  Qxb4 {[%clk 0:02:34]} 18. Bh3 {[%clk 0:01:44]}  e6 {[%clk 0:02:24]} 19. Ng5 {[%clk 0:01:36]}  Bf5 {[%clk 0:02:18]} 20. g4 {[%clk 0:01:31]}  Be4 {[%clk 0:02:13]} 21. f3 {[%clk 0:01:07]}  Bh6 {[%clk 0:02:12]} 22. Rxc8 {[%clk 0:00:49]}  Rxc8 {[%clk 0:02:11]} 23. Nxf7 {[%clk 0:00:44]}  Kxf7 {[%clk 0:02:03]} 24. fxe4 {[%clk 0:00:43]}  dxe4 {[%clk 0:02:04]} 25. Rf1+ {[%clk 0:00:35]}  Kg7 {[%clk 0:02:03]} 26. g5 {[%clk 0:00:26]}  Bxg5 {[%clk 0:02:02]} 27. Bxe6 {[%clk 0:00:27]}  Rc7 {[%clk 0:01:50]} 28. Qf2 {[%clk 0:00:17]}  Qe7 {[%clk 0:01:42]} 29. Bc4 {[%clk 0:00:11]}  b5 {[%clk 0:01:38]} 30. Bxb5 {[%clk 0:00:09]}  Rc3 {[%clk 0:01:39]} 31. Re1 {[%clk 0:00:02]}  Bh4 {[%clk 0:01:39]} 32. Qd2 {[%clk 0:00:02]}  Bxe1 {[%clk 0:01:39]} 33. Qxe1 {[%clk 0:00:03]}  Qg5+ {[%clk 0:01:39]} 34. Kf2 {[%clk 0:00:02]}  Qh4+ {[%clk 0:01:39]} 35. Kf1 {[%clk 0:00:02]}  Qxe1+ {[%clk 0:01:36]} 36. Kxe1 {[%clk 0:00:03]}  Rxe3+ {[%clk 0:01:37]} 0-1


[Site "https://www.chess.com"]

[Event "Titled Tuesday Blitz June 07 Late 2022"]
[White "Derraugh, Geordie"]
[Black "Grigoriants, Sergey"]
[WhiteFideId "2603950"]
[BlackFideId "4130804"]
[WhiteElo "2116"]
[BlackElo "2502"]
[Result "0-1"]
[Round "01"]
[TimeControl "180+1"]
[Date "2022.06.07"]
[WhiteClock "0:00:39"]
[BlackClock "0:00:23"]

1. e4 {[%clk 0:03:00]}  c5 {[%clk 0:02:55]} 2. Nf3 {[%clk 0:02:59]}  e6 {[%clk 0:02:55]} 3. d3 {[%clk 0:02:57]}  Nc6 {[%clk 0:02:55]} 4. g3 {[%clk 0:02:57]}  Nf6 {[%clk 0:02:49]} 5. Bg2 {[%clk 0:02:57]}  g6 {[%clk 0:02:48]} 6. O-O {[%clk 0:02:58]}  Bg7 {[%clk 0:02:49]} 7. Re1 {[%clk 0:02:56]}  d5 {[%clk 0:02:49]} 8. e5 {[%clk 0:02:53]}  Nd7 {[%clk 0:02:48]} 9. Bf4 {[%clk 0:02:52]}  h6 {[%clk 0:02:47]} 10. h4 {[%clk 0:02:52]}  b5 {[%clk 0:02:30]} 11. a4 {[%clk 0:02:49]}  b4 {[%clk 0:02:30]} 12. c4 {[%clk 0:02:50]}  bxc3 {[%clk 0:02:28]} 13. bxc3 {[%clk 0:02:42]}  Rb8 {[%clk 0:02:26]} 14. c4 {[%clk 0:02:40]}  Nb4 {[%clk 0:02:22]} 15. Nc3 {[%clk 0:02:38]}  O-O {[%clk 0:02:16]} 16. cxd5 {[%clk 0:02:35]}  exd5 {[%clk 0:02:16]} 17. Nxd5 {[%clk 0:02:28]}  Nxd5 {[%clk 0:02:15]} 18. e6 {[%clk 0:02:28]}  Nxf4 {[%clk 0:02:08]} 19. exd7 {[%clk 0:02:27]}  Bxd7 {[%clk 0:02:02]} 20. gxf4 {[%clk 0:02:26]}  Bxa1 {[%clk 0:02:01]} 21. Qxa1 {[%clk 0:02:27]}  Bc6 {[%clk 0:01:58]} 22. Qc3 {[%clk 0:02:20]}  Bxf3 {[%clk 0:01:56]} 23. Bxf3 {[%clk 0:02:20]}  Qxh4 {[%clk 0:01:56]} 24. Qxc5 {[%clk 0:02:12]}  Qxf4 {[%clk 0:01:55]} 25. Bg2 {[%clk 0:02:09]}  Qxa4 {[%clk 0:01:53]} 26. Bd5 {[%clk 0:01:59]}  Qb4 {[%clk 0:01:51]} 27. Qc1 {[%clk 0:01:57]}  Kg7 {[%clk 0:01:49]} 28. Qa1+ {[%clk 0:01:54]}  Qb2 {[%clk 0:01:40]} 29. Qxa7 {[%clk 0:01:53]}  Rbd8 {[%clk 0:01:39]} 30. Bc4 {[%clk 0:01:48]}  Qd4 {[%clk 0:01:37]} 31. Qb7 {[%clk 0:01:46]}  Rd7 {[%clk 0:01:36]} 32. Qf3 {[%clk 0:01:45]}  Rd6 {[%clk 0:01:30]} 33. Re4 {[%clk 0:01:45]}  Rf6 {[%clk 0:01:27]} 34. Qg3 {[%clk 0:01:43]}  Qc5 {[%clk 0:01:22]} 35. Kg2 {[%clk 0:01:33]}  Rd8 {[%clk 0:01:22]} 36. Re5 {[%clk 0:01:26]}  Qc6+ {[%clk 0:01:19]} 37. Kg1 {[%clk 0:01:22]}  Rd4 {[%clk 0:01:14]} 38. Re7 {[%clk 0:01:15]}  Qc5 {[%clk 0:00:53]} 39. Re5 {[%clk 0:01:03]}  Qd6 {[%clk 0:00:48]} 40. Qe3 {[%clk 0:00:59]}  Rg4+ {[%clk 0:00:44]} 41. Kf1 {[%clk 0:00:58]}  Rgf4 {[%clk 0:00:41]} 42. Re8 {[%clk 0:00:52]}  Qc6 {[%clk 0:00:37]} 43. Re7 {[%clk 0:00:45]}  Qh1+ {[%clk 0:00:27]} 44. Ke2 {[%clk 0:00:45]}  Qg2 {[%clk 0:00:28]} 45. Kd2 {[%clk 0:00:40]}  Qxf2+ {[%clk 0:00:21]} 46. Qxf2 {[%clk 0:00:38]}  Rxf2+ {[%clk 0:00:22]} 47. Kc3 {[%clk 0:00:39]}  h5 {[%clk 0:00:23]} 48. d4 {[%clk 0:00:39]}  h4 {[%clk 0:00:23]} 49. d5 {[%clk 0:00:39]}  h3 {[%clk 0:00:23]} 50. d6 {[%clk 0:00:39]}  Rxd6 {[%clk 0:00:23]} 0-1


[Site "https://www.chess.com"]

[Event "Titled Tuesday Blitz June 07 Late 2022"]
[White "Dounis, Alexandros"]
[Black "Hansen, Eric"]
[WhiteFideId "4213238"]
[BlackFideId "2606771"]
[WhiteElo "2204"]
[BlackElo "2568"]
[Result "0-1"]
[Round "01"]
[TimeControl "180+1"]
[Date "2022.06.07"]
[WhiteClock "0:00:07"]
[BlackClock "0:01:15"]

1. Nf3 {[%clk 0:03:00]}  d5 {[%clk 0:02:54]} 2. g3 {[%clk 0:03:00]}  c6 {[%clk 0:02:54]} 3. Bg2 {[%clk 0:03:01]}  Bg4 {[%clk 0:02:45]} 4. O-O {[%clk 0:03:01]}  Nd7 {[%clk 0:02:45]} 5. d3 {[%clk 0:03:00]}  e5 {[%clk 0:02:45]} 6. e4 {[%clk 0:02:58]}  dxe4 {[%clk 0:02:46]} 7. dxe4 {[%clk 0:02:59]}  Ngf6 {[%clk 0:02:46]} 8. Qe2 {[%clk 0:02:55]}  h6 {[%clk 0:02:46]} 9. h3 {[%clk 0:02:54]}  Be6 {[%clk 0:02:46]} 10. b3 {[%clk 0:02:51]}  Qc7 {[%clk 0:02:45]} 11. Bb2 {[%clk 0:02:49]}  Be7 {[%clk 0:02:45]} 12. Nbd2 {[%clk 0:02:48]}  b5 {[%clk 0:02:39]} 13. a4 {[%clk 0:02:48]}  O-O {[%clk 0:02:39]} 14. Rfc1 {[%clk 0:02:43]}  a6 {[%clk 0:02:39]} 15. c4 {[%clk 0:02:27]}  b4 {[%clk 0:02:32]} 16. c5 {[%clk 0:02:21]}  Bxc5 {[%clk 0:02:13]} 17. Rxc5 {[%clk 0:01:59]}  Nxc5 {[%clk 0:02:11]} 18. Nxe5 {[%clk 0:01:59]}  Rad8 {[%clk 0:02:01]} 19. Rc1 {[%clk 0:01:56]}  Rxd2 {[%clk 0:02:01]} 20. Qxd2 {[%clk 0:01:52]}  Nxb3 {[%clk 0:02:02]} 21. Qc2 {[%clk 0:00:56]}  Nxc1 {[%clk 0:02:02]} 22. Qxc1 {[%clk 0:00:56]}  c5 {[%clk 0:02:03]} 23. Nd3 {[%clk 0:00:52]}  Ne8 {[%clk 0:01:46]} 24. Nxc5 {[%clk 0:00:48]}  a5 {[%clk 0:01:44]} 25. Qe3 {[%clk 0:00:41]}  Qd6 {[%clk 0:01:40]} 26. Kh2 {[%clk 0:00:31]}  Qd1 {[%clk 0:01:28]} 27. Qf4 {[%clk 0:00:23]}  Qc2 {[%clk 0:01:24]} 28. Qe5 {[%clk 0:00:18]}  Qxf2 {[%clk 0:01:22]} 29. Bd4 {[%clk 0:00:16]}  Qf6 {[%clk 0:01:20]} 30. Nxe6 {[%clk 0:00:12]}  Qxe5 {[%clk 0:01:17]} 31. Bxe5 {[%clk 0:00:09]}  fxe6 {[%clk 0:01:18]} 32. Kg1 {[%clk 0:00:07]}  Nf6 {[%clk 0:01:15]} 0-1


[Site "https://www.chess.com"]

[Event "Titled Tuesday Blitz June 07 Late 2022"]
[White "Dubov, Daniil"]
[Black "Goncalves, Davi Sulzbacher"]
[WhiteFideId "24126055"]
[BlackFideId "2154510"]
[WhiteElo "2791"]
[BlackElo "2107"]
[Result "1-0"]
[Round "01"]
[TimeControl "180+1"]
[Date "2022.06.07"]
[WhiteClock "0:01:35"]
[BlackClock "0:01:24"]

1. c4 {[%clk 0:03:00]}  c5 {[%clk 0:02:59]} 2. Nf3 {[%clk 0:02:59]}  Nc6 {[%clk 0:02:59]} 3. d4 {[%clk 0:02:59]}  cxd4 {[%clk 0:02:59]} 4. Nxd4 {[%clk 0:03:00]}  g6 {[%clk 0:02:58]} 5. Nc2 {[%clk 0:02:57]}  Bg7 {[%clk 0:02:58]} 6. g3 {[%clk 0:02:58]}  Nf6 {[%clk 0:02:58]} 7. Bg2 {[%clk 0:02:58]}  O-O {[%clk 0:02:58]} 8. O-O {[%clk 0:02:58]}  d6 {[%clk 0:02:58]} 9. Nc3 {[%clk 0:02:58]}  Bd7 {[%clk 0:02:57]} 10. b3 {[%clk 0:02:57]}  Qa5 {[%clk 0:02:56]} 11. Bb2 {[%clk 0:02:51]}  Rfc8 {[%clk 0:02:53]} 12. Qd2 {[%clk 0:02:47]}  Qh5 {[%clk 0:02:44]} 13. Rfd1 {[%clk 0:02:44]}  Bh3 {[%clk 0:02:41]} 14. Ne3 {[%clk 0:02:40]}  Bh6 {[%clk 0:02:36]} 15. Ncd5 {[%clk 0:02:30]}  Ng4 {[%clk 0:02:33]} 16. Nxg4 {[%clk 0:02:19]}  Bxg4 {[%clk 0:01:56]} 17. Qc3 {[%clk 0:01:46]}  f6 {[%clk 0:01:40]} 18. Nxf6+ {[%clk 0:01:36]}  exf6 {[%clk 0:01:38]} 19. Bd5+ {[%clk 0:01:37]}  Kf8 {[%clk 0:01:24]} 20. Qxf6+ {[%clk 0:01:35]} 1-0


[Site "https://www.chess.com"]

[Event "Titled Tuesday Blitz June 07 Late 2022"]
[White "Garcia, Gabriel Gonzaga"]
[Black "Jobava, Baadur"]
[WhiteFideId "2138956"]
[BlackFideId "13601520"]
[WhiteElo "2240"]
[BlackElo "2617"]
[Result "0-1"]
[Round "01"]
[TimeControl "180+1"]
[Date "2022.06.07"]
[WhiteClock "0:00:31"]
[BlackClock "0:01:02"]

1. e4 {[%clk 0:03:00]}  d6 {[%clk 0:03:00]} 2. d4 {[%clk 0:02:59]}  Nf6 {[%clk 0:02:58]} 3. Nc3 {[%clk 0:02:59]}  e5 {[%clk 0:02:58]} 4. dxe5 {[%clk 0:02:59]}  dxe5 {[%clk 0:02:58]} 5. Qxd8+ {[%clk 0:02:59]}  Kxd8 {[%clk 0:02:59]} 6. Bc4 {[%clk 0:03:00]}  Ke8 {[%clk 0:02:59]} 7. Bg5 {[%clk 0:02:58]}  Bd6 {[%clk 0:02:58]} 8. Nge2 {[%clk 0:02:55]}  Nbd7 {[%clk 0:02:57]} 9. O-O-O {[%clk 0:02:55]}  h6 {[%clk 0:02:57]} 10. Bxf6 {[%clk 0:02:52]}  Nxf6 {[%clk 0:02:56]} 11. Ng3 {[%clk 0:02:52]}  g6 {[%clk 0:02:55]} 12. Nb5 {[%clk 0:02:49]}  Ke7 {[%clk 0:02:55]} 13. Rd3 {[%clk 0:02:45]}  Rd8 {[%clk 0:02:35]} 14. Rhd1 {[%clk 0:02:43]}  a6 {[%clk 0:02:31]} 15. Nxd6 {[%clk 0:02:41]}  Rxd6 {[%clk 0:02:32]} 16. Rxd6 {[%clk 0:02:41]}  cxd6 {[%clk 0:02:33]} 17. f3 {[%clk 0:02:38]}  Be6 {[%clk 0:02:32]} 18. Bb3 {[%clk 0:02:36]}  Rc8 {[%clk 0:02:31]} 19. Nf1 {[%clk 0:02:36]}  Nd7 {[%clk 0:02:29]} 20. Ne3 {[%clk 0:02:36]}  Nc5 {[%clk 0:02:29]} 21. Nd5+ {[%clk 0:02:33]}  Kf8 {[%clk 0:02:28]} 22. Kb1 {[%clk 0:02:07]}  Nxb3 {[%clk 0:02:27]} 23. axb3 {[%clk 0:02:08]}  f5 {[%clk 0:02:28]} 24. exf5 {[%clk 0:01:34]}  gxf5 {[%clk 0:02:25]} 25. Nb6 {[%clk 0:01:35]}  Rc6 {[%clk 0:02:24]} 26. Nc4 {[%clk 0:01:35]}  Ke7 {[%clk 0:02:24]} 27. Ne3 {[%clk 0:01:30]}  f4 {[%clk 0:02:21]} 28. Nd5+ {[%clk 0:01:31]}  Bxd5 {[%clk 0:02:21]} 29. Rxd5 {[%clk 0:01:31]}  Ke6 {[%clk 0:02:22]} 30. c4 {[%clk 0:01:31]}  Rc8 {[%clk 0:02:22]} 31. Rd2 {[%clk 0:01:28]}  Rg8 {[%clk 0:02:22]} 32. Kc2 {[%clk 0:01:27]}  h5 {[%clk 0:02:22]} 33. Kd3 {[%clk 0:01:27]}  h4 {[%clk 0:02:22]} 34. h3 {[%clk 0:01:24]}  a5 {[%clk 0:02:22]} 35. Ke4 {[%clk 0:01:23]}  Rg7 {[%clk 0:02:17]} 36. Rc2 {[%clk 0:01:20]}  Rc7 {[%clk 0:02:16]} 37. Rd2 {[%clk 0:01:20]}  Rg7 {[%clk 0:02:15]} 38. Rc2 {[%clk 0:01:20]}  b5 {[%clk 0:02:15]} 39. Kd3 {[%clk 0:01:05]}  bxc4+ {[%clk 0:02:03]} 40. bxc4 {[%clk 0:01:06]}  a4 {[%clk 0:02:02]} 41. Kc3 {[%clk 0:00:56]}  Rb7 {[%clk 0:02:02]} 42. Rd2 {[%clk 0:00:56]}  Rb3+ {[%clk 0:02:02]} 43. Kc2 {[%clk 0:00:57]}  Re3 {[%clk 0:02:01]} 44. Rd5 {[%clk 0:00:53]}  Re2+ {[%clk 0:01:57]} 45. Rd2 {[%clk 0:00:53]}  Re1 {[%clk 0:01:57]} 46. Rd1 {[%clk 0:00:51]}  Re3 {[%clk 0:01:44]} 47. Rd3 {[%clk 0:00:51]}  Re1 {[%clk 0:01:35]} 48. Rd2 {[%clk 0:00:45]}  Ra1 {[%clk 0:01:22]} 49. Kc3 {[%clk 0:00:43]}  a3 {[%clk 0:01:19]} 50. b4 {[%clk 0:00:40]}  a2 {[%clk 0:01:17]} 51. Kb2 {[%clk 0:00:40]}  Rb1+ {[%clk 0:01:17]} 52. Kxa2 {[%clk 0:00:39]}  Rxb4 {[%clk 0:01:18]} 53. Rc2 {[%clk 0:00:37]}  Kd7 {[%clk 0:01:12]} 54. Ka3 {[%clk 0:00:37]}  Rb1 {[%clk 0:01:12]} 55. Rb2 {[%clk 0:00:34]}  Rc1 {[%clk 0:01:10]} 56. Kb4 {[%clk 0:00:34]}  Kc6 {[%clk 0:01:10]} 57. Ra2 {[%clk 0:00:34]}  Rg1 {[%clk 0:01:08]} 58. Ra6+ {[%clk 0:00:32]}  Kd7 {[%clk 0:01:09]} 59. Ra2 {[%clk 0:00:33]}  Rc1 {[%clk 0:01:05]} 60. Kb5 {[%clk 0:00:33]}  Rb1+ {[%clk 0:01:04]} 61. Ka4 {[%clk 0:00:33]}  Kc6 {[%clk 0:01:04]} 62. Rc2 {[%clk 0:00:32]}  Kc5 {[%clk 0:01:04]} 63. Rd2 {[%clk 0:00:32]}  Kxc4 {[%clk 0:01:02]} 64. Rxd6 {[%clk 0:00:31]}  Ra1# {[%clk 0:01:02]} 0-1


[Site "https://www.chess.com"]